fUST/lending_fUST_20250103
["ID","MTS","AMOUNT","RATE_DAILY","PERIOD"]
[347465308,1735839046059,-500.0,0.00021917,3]
[347465309,1735839046069,-500.0,0.00021917,3]
[347465310,1735839046079,-1334.48,0.00021917,3]
[347465311,1735839046091,-500.0,0.00021917,3]
[347465312,1735839046101,-839.16,0.00021917,3]
[347465313,1735839046111,-9313.85,0.00021917,3]
[347465314,1735839046121,-500.0,0.00021917,3]
[347465315,1735839046130,-500.0,0.00021917,3]
[347465316,1735839046139,-3119.32,0.00021917,3]
[347465317,1735839046148,-500.0,0.00021917,3]
[347465318,1735839046157,-1352.51,0.00021917,3]
[347465319,1735839046167,-597.38,0.00021917,2]
[347465320,1735839046178,-500.0,0.00021917,3]
[347465321,1735839046187,-2393.13,0.00021917,3]
[347465322,1735839046197,-4320.49,0.00021917,3]
[347465323,1735839046207,-500.0,0.00021917,3]
[347465324,1735839046216,-500.0,0.00021917,3]
[347465325,1735839046226,-922.24,0.00021917,3]
[347465326,1735839046235,-500.0,0.00021917,3]
[347465327,1735839046244,-860.78,0.00021917,3]
[347465328,1735839046253,-500.0,0.00021917,3]
[347465329,1735839046263,-826.21,0.00021917,3]
[347465330,1735839046273,-500.0,0.00021917,3]
[347465331,1735839046283,-2017.31,0.00021917,3]
[347465332,1735839046292,-1913.09,0.00021917,3]
[347465333,1735839046302,-1193.04,0.00021917,3]
[347465334,1735839046311,-469.94606502,0.00021953,2]
[347465335,1735839046320,-20418.73304294,0.0002198,7]
[347465336,1735839046330,-250.569,0.00021981,2]
[347465337,1735839046339,-2089.0,0.00021981,2]
[347465338,1735839046348,-534.0,0.00021981,2]
[347465339,1735839046357,-2322.0,0.00021981,2]
[347465340,1735839046366,-284.0,0.00022,2]
[347465341,1735839046375,-151.0,0.00022,10]
[347465342,1735839046385,-192.0,0.00022,2]
[347465343,1735839046394,-74826.49968277,0.00022,7]
[347465344,1735839046405,-4562.8851169,0.0002201,16]
[347465345,1735839046414,-179.919099,0.00022055,2]
[347465346,1735839046423,-469.94606502,0.00022111,2]
[347465347,1735839046433,-11744.56729052,0.00022129,2]
[347465348,1735839046443,-500.0,0.00022191,3]
[347465349,1735839046452,-500.0,0.00022191,3]
[347465350,1735839046462,-500.0,0.00022191,3]
[347465351,1735839046472,-1334.48,0.00022191,3]
[347465352,1735839046482,-444.78,0.00022191,3]
[347465353,1735839046492,-839.16,0.00022191,3]
[347465354,1735839046501,-9313.85,0.00022191,3]
[347465355,1735839046511,-500.0,0.00022191,3]
[347465356,1735839046521,-500.0,0.00022191,3]
[347465357,1735839046531,-3119.32,0.00022191,3]
[347465358,1735839046540,-500.0,0.00022191,3]
[347465359,1735839046550,-1352.51,0.00022191,3]
[347465360,1735839046559,-597.38,0.00022191,2]
[347465361,1735839046568,-500.0,0.00022191,3]
[347465362,1735839046577,-2393.13,0.00022191,3]
[347465363,1735839046587,-4320.49,0.00022191,3]
[347465364,1735839046596,-165.14,0.00022191,3]
[347465365,1735839046605,-500.0,0.00022191,3]
[347465366,1735839046615,-922.24,0.00022191,3]
[347465367,1735839046625,-500.0,0.00022191,3]
[347465368,1735839046634,-860.78,0.00022191,3]
[347465369,1735839046644,-500.0,0.00022191,3]
[347465370,1735839046653,-826.21,0.00022191,3]
[347465371,1735839046663,-500.0,0.00022191,3]
[347465372,1735839046673,-2017.31,0.00022191,3]
[347465373,1735839046683,-1913.09,0.00022191,3]
[347465374,1735839046692,-1193.04,0.00022191,3]
[347465375,1735839046702,-284.0,0.00022192,2]
[347465376,1735839046711,-484.0,0.000222,2]
[347465377,1735839046720,-469.94606502,0.00022268,2]
[347465378,1735839046729,-600.0,0.00022294,2]
[347465379,1735839046739,-151.0,0.000223,9]
[347465380,1735839046749,-1000.0,0.00022329,2]
[347465381,1735839046758,-926.20036442,0.00022333,2]
[347465382,1735839046767,-352.6747562,0.00022341,2]
[347465383,1735839046776,-352.6747562,0.00022341,2]
[347465384,1735839046785,-352.6747562,0.00022341,2]
[347465385,1735839046795,-352.6747562,0.00022341,2]
[347465386,1735839046805,-352.6747562,0.00022341,2]
[347465387,1735839046814,-703.0116968,0.00022341,2]
[347465388,1735839046823,-2555.83901509,0.00022354,2]
[347465389,1735839046915,-9188.72827546,0.00022354,2]
[347465390,1735839046925,-1000.0,0.00022383,2]
[347465391,1735839046934,-1000.0,0.00022385,2]
[347465392,1735839046944,-1000.0,0.00022396,2]
[347465393,1735839046953,-151.0,0.000224,7]
[347465394,1735839046962,-7610.32247717,0.00022418,2]
[347465395,1735839046971,-5000.0,0.00022418,2]
[347465396,1735839046980,-5000.0,0.00022418,2]
[347465397,1735839046990,-5000.0,0.00022418,2]
[347465398,1735839046999,-5000.0,0.00022418,2]
[347465399,1735839047008,-469.94606502,0.00022426,2]
[347465400,1735839047017,-166.15572886,0.00022426,2]
[347465401,1735839047026,-1000.0,0.00022429,2]
[347465402,1735839047036,-6105.27696587,0.00022433,7]
[347465403,1735839047044,-1000.0,0.00022436,2]
[347465404,1735839047053,-1000.0,0.00022439,2]
[347465405,1735839047063,-1000.0,0.00022453,2]
[347465406,1735839047072,-1000.0,0.00022453,2]
[347465407,1735839047081,-286.28,0.00022465,3]
[347465408,1735839047092,-500.0,0.00022465,3]
[347465409,1735839047102,-500.0,0.00022465,3]
[347465410,1735839047112,-1334.48,0.00022465,3]
[347465411,1735839047121,-839.16,0.00022465,3]
[347465412,1735839047132,-9313.85,0.00022465,3]
[347465413,1735839047141,-432.57,0.00022465,3]
[347465414,1735839047150,-500.0,0.00022465,3]
[347465415,1735839047160,-3119.32,0.00022465,3]
[347465416,1735839047171,-500.0,0.00022465,3]
[347465417,1735839047180,-1352.51,0.00022465,3]
[347465418,1735839047190,-597.38,0.00022465,2]
[347465419,1735839047199,-500.0,0.00022465,3]
[347465420,1735839047208,-2393.13,0.00022465,3]
[347465421,1735839047217,-4320.49,0.00022465,3]
[347465422,1735839047226,-500.0,0.00022465,3]
[347465423,1735839047236,-922.24,0.00022465,3]
[347465424,1735839047245,-500.0,0.00022465,3]
[347465425,1735839047255,-860.78,0.00022465,3]
[347465426,1735839047264,-500.0,0.00022465,3]
[347465427,1735839047275,-500.0,0.00022465,3]
[347465428,1735839047285,-2017.31,0.00022465,3]
[347465429,1735839047295,-1913.09,0.00022465,3]
[347465430,1735839047305,-1193.04,0.00022465,3]
[347465431,1735839047321,-2998.46,0.000225,14]
[347465432,1735839047330,-600.0,0.00022526,2]
[347465433,1735839047340,-153.78184697,0.00022533,2]
[347465434,1735839047349,-9639.03875165,0.00022533,2]
[347465435,1735839047372,-285.43980486,0.00022533,2]
[347465436,1735839047384,-16998.32414732,0.00022533,2]
[347465437,1735839047394,-1421.9547413,0.00022537,2]
[347465438,1735839047423,-536.61309376,0.00019178,2]
[347465439,1735839047432,-500.0,0.0002,3]
[347465440,1735839047442,-500.0,0.00020547,3]
[347465441,1735839047452,-1578.0452587,0.00022537,2]
[347465442,1735839047461,-1000.0,0.00022556,2]
[347465443,1735839047473,-14075.85348644,0.00022559,14]
[347465444,1735839047483,-1000.0,0.00022571,2]
[347465445,1735839047493,-1000.0,0.00022574,2]
[347465446,1735839047504,-469.94606502,0.00022584,2]
[347465447,1735839047514,-183.9798493,0.00022592,2]
[347465448,1735839047526,-151.0,0.000226,10]
[347465449,1735839047535,-151.0,0.000226,8]
[347465450,1735839047544,-151.0,0.000226,7]
[347465451,1735839047553,-151.0,0.000226,5]
[347465452,1735839047562,-151.0,0.000226,7]
[347465453,1735839047571,-150.0,0.000226,2]
[347465454,1735839047581,-1748.84,0.000226,2]
[347465455,1735839047590,-157.06,0.00022613,2]
[347465456,1735839047600,-201.0,0.0002263,8]
[347465457,1735839047609,-500.0,0.00022632,8]
[347465458,1735839047618,-24521.89882192,0.00022632,2]
[347465459,1735839047627,-200335.18677371,0.00022632,2]
[347465460,1735839047637,-758537.33622063,0.00022633,10]
[347465461,1735839047648,-999.888,0.00022633,10]
[347465462,1735839047881,-434.23634536,0.00018984,2]
[347465463,1735839047891,-500.0,0.00019178,2]
[347465464,1735839047901,-500.0,0.00019178,2]
[347465465,1735839047911,-500.0,0.00019178,2]
[347465466,1735839047920,-67.56758112,0.00019178,2]
[347465467,1735839047968,-432.43241888,0.00019178,2]
[347465468,1735839047977,-553.62386844,0.00019178,2]
[347465469,1735839047987,-369.01371268,0.00019178,2]
[347465470,1735839047998,-132.94587369,0.00019178,2]
[347465471,1735839048007,-502.03681577,0.00019178,2]
[347465472,1735839048017,-500.0,0.00019452,3]
[347465473,1735839048026,-500.0,0.00019452,3]
[347465474,1735839048036,-630.33282972,0.00019452,3]
[347465475,1735839048046,-500.0,0.00019726,3]
[347465476,1735839048056,-500.0,0.00019726,3]
[347465477,1735839048066,-500.0,0.0002,3]
[347465478,1735839048076,-500.0,0.0002,3]
[347465479,1735839048085,-500.0,0.00020273,3]
[347465480,1735839048099,-500.0,0.00020273,3]
[347465481,1735839048108,-500.0,0.00020273,3]
[347465482,1735839048118,-500.0,0.00020547,3]
[347465483,1735839048127,-500.0,0.00020547,3]
[347465484,1735839048137,-500.0,0.00020821,3]
[347465485,1735839048147,-500.0,0.00020821,3]
[347465486,1735839048157,-54.28508082,0.00021095,3]
[347465487,1735839048169,-442.71028171,0.00021095,3]
[347465493,1735839303865,190.02328871,0.0001,2]
[347465497,1735839354933,-897.61936842,0.00024,60]
[347465498,1735839354963,-159.876314,0.0002411,80]
[347465499,1735839354990,-159.876314,0.0002411,119]
[347465500,1735839355146,-858.12988593,0.000255,60]
[347465501,1735839355179,-160.0,0.00025607,120]
[347465502,1735839355209,-160.0,0.00025833,120]
[347465503,1735839355237,-477.86816005,0.000261,60]
[347465504,1735839355266,-160.0,0.00026329,120]
[347465505,1735839355294,-160.0,0.00026777,120]
[347465506,1735839355320,-160.0,0.00026795,120]
[347465507,1735839355347,-400.0,0.00027397,60]
[347465508,1735839355374,-1351.516503,0.00027397,120]
[347465509,1735839355400,-994896.1134546,0.00027397,59]
[347465510,1735839380828,-1000002.0,0.00027397,59]
[347465511,1735839383730,-1000003.0,0.00027397,59]
[347465512,1735839389811,-1000004.0,0.00027397,59]
[347465513,1735839389969,159.876314,0.0002411,120]
[347465514,1735839392612,-1000005.0,0.00027397,59]
[347465515,1735839423185,3254.79523574,0.00025,120]
[347465518,1735839486709,7809.200076,0.00025,120]
[347465519,1735839487132,890.36431335,0.00025,120]
[347465520,1735839489530,838.89824756,0.00025,120]
[347465522,1735839497354,6571.85441874,0.00025,120]
[347465528,1735840086528,214.560947,0.00013973,2]
[347465529,1735840110742,160.0,0.00022793,120]
[347465532,1735840178793,3950.0,0.00025,120]
[347465538,1735840232086,-8872.81535761,0.00014988,2]
[347465539,1735840232097,-10578.66300294,0.00014988,2]
[347465540,1735840232107,-19451.47836055,0.00014989,2]
[347465541,1735840232117,-19451.47836055,0.00014998,2]
[347465542,1735840232126,-159.89239171,0.00018326,2]
[347465543,1735840232135,-319.457,0.00018416,2]
[347465544,1735840232145,-300.0,0.00018426,2]
[347465545,1735840232154,-4173.0,0.00018426,2]
[347465550,1735840232289,-14907.2502338,0.00018427,2]
[347465552,1735840232304,-763.54214444,0.00019078,2]
[347465554,1735840232314,-32545.41385628,0.00019078,2]
[347465556,1735840232323,-1904.76830617,0.00019138,2]
[347465558,1735840232332,-500.0,0.00019173,2]
[347465560,1735840232342,-500.0,0.00019173,2]
[347465562,1735840232351,-502.41149017,0.00019173,2]
[347465564,1735840232361,-500.0,0.00019173,2]
[347465565,1735840232370,-500.0,0.00019173,2]
[347465567,1735840232379,-500.0,0.00019173,2]
[347465569,1735840232388,-500.3380133,0.00019173,2]
[347465571,1735840232398,-500.0,0.00019173,2]
[347465572,1735840232407,-500.0,0.00019173,2]
[347465574,1735840232416,-559.16574093,0.00019175,3]
[347465575,1735840232425,-500.0,0.00019177,2]
[347465576,1735840232436,-500.0,0.00019177,2]
[347465577,1735840232447,-500.0,0.00019177,2]
[347465579,1735840232456,-500.0,0.00019177,2]
[347465581,1735840232465,-500.0,0.00019177,2]
[347465583,1735840232474,-500.0,0.00019177,2]
[347465584,1735840232484,-500.0,0.00019177,2]
[347465585,1735840232494,-500.0,0.00019177,2]
[347465587,1735840232503,-500.0,0.00019177,2]
[347465589,1735840232514,-391.15472894,0.00019177,2]
[347465591,1735840232523,-500.0,0.00019177,2]
[347465592,1735840232532,-500.0,0.00019177,2]
[347465593,1735840232541,-158.47760468,0.00019177,2]
[347465594,1735840232551,-500.0,0.00019177,2]
[347465595,1735840232560,-500.0,0.00019177,2]
[347465596,1735840232570,-500.0,0.00019177,2]
[347465597,1735840232579,-500.0,0.00019177,2]
[347465598,1735840232589,-618.68335245,0.00019177,2]
[347465599,1735840232599,-500.0,0.00019177,2]
[347465600,1735840232608,-500.0,0.00019177,2]
[347465601,1735840232617,-236.35373604,0.00019177,2]
[347465602,1735840232627,-500.0,0.00019177,2]
[347465603,1735840232636,-500.0,0.00019177,2]
[347465604,1735840232645,-500.0,0.00019177,2]
[347465605,1735840232655,-372.41655394,0.00019177,2]
[347465606,1735840232665,-500.0,0.00019177,2]
[347465607,1735840232674,-500.0,0.00019177,2]
[347465608,1735840232683,-500.0,0.00019177,2]
[347465610,1735840232692,-323.23574289,0.00019177,2]
[347465611,1735840232700,-500.0,0.00019177,2]
[347465613,1735840232710,-500.0,0.00019177,2]
[347465615,1735840232720,-500.0,0.00019177,2]
[347465616,1735840232729,-500.0,0.00019177,2]
[347465617,1735840232738,-500.0,0.00019177,2]
[347465619,1735840232747,-500.0,0.00019177,2]
[347465621,1735840232757,-500.0,0.00019177,2]
[347465622,1735840232766,-500.0,0.00019177,2]
[347465623,1735840232776,-500.0,0.00019177,2]
[347465624,1735840232785,-500.0,0.00019177,2]
[347465625,1735840232795,-212.59744623,0.00019177,2]
[347465626,1735840232806,-500.0,0.00019177,2]
[347465627,1735840232815,-500.0,0.00019177,2]
[347465628,1735840232824,-500.0,0.00019177,2]
[347465629,1735840232833,-500.0,0.00019177,2]
[347465630,1735840232843,-500.0,0.00019177,2]
[347465631,1735840232852,-500.0,0.00019177,2]
[347465632,1735840232861,-500.0,0.00019177,2]
[347465633,1735840232871,-500.0,0.00019177,2]
[347465634,1735840232880,-500.0,0.00019177,2]
[347465635,1735840232889,-500.0,0.00019177,2]
[347465636,1735840232898,-586.26193861,0.00019177,2]
[347465637,1735840232907,-260.6600288,0.00019177,2]
[347465638,1735840232916,-500.0,0.00019177,2]
[347465639,1735840232925,-500.0,0.00019177,2]
[347465640,1735840232934,-346.78731693,0.00019177,2]
[347465641,1735840232943,-500.0,0.00019178,2]
[347465642,1735840232952,-235.85898653,0.00019178,2]
[347465643,1735840232961,-504.75636727,0.00019178,2]
[347465644,1735840232970,-500.37468758,0.00019178,2]
[347465645,1735840232981,-244.29148324,0.00019178,2]
[347465646,1735840232990,-500.0,0.00019178,2]
[347465647,1735840233000,-500.0,0.00019178,2]
[347465648,1735840233010,-500.0,0.00019178,2]
[347465649,1735840233019,-500.61478017,0.00019178,2]
[347465650,1735840233028,-491.31530678,0.00019178,2]
[347465651,1735840233038,-500.0,0.00019178,2]
[347465652,1735840233050,-506.13800667,0.00019178,2]
[347465653,1735840233060,-500.42830118,0.00019178,2]
[347465654,1735840233070,-500.0,0.00019178,2]
[347465655,1735840233080,-501.83236572,0.00019178,2]
[347465656,1735840233089,-500.0,0.00019178,2]
[347465657,1735840233099,-500.0,0.00019178,2]
[347465658,1735840233108,-501.18156585,0.00019178,2]
[347465659,1735840233117,-503.10959947,0.00019178,2]
[347465660,1735840233127,-509.32466895,0.00019178,2]
[347465661,1735840233137,-500.0,0.00019178,2]
[347465662,1735840233147,-500.0,0.00019178,2]
[347465663,1735840233157,-260.30023074,0.00019178,2]
[347465664,1735840233167,-501.12176023,0.00019178,2]
[347465665,1735840233177,-503.96798904,0.00019178,2]
[347465666,1735840233187,-812.71,0.00019178,2]
[347465667,1735840233197,-500.0,0.00019178,2]
[347465668,1735840233206,-500.0,0.00019178,2]
[347465669,1735840233216,-504.49525942,0.00019178,2]
[347465670,1735840233226,-445.29549241,0.00019178,2]
[347465671,1735840233235,-506.19760019,0.00019178,2]
[347465672,1735840233246,-503.20815363,0.00019178,2]
[347465673,1735840233255,-502.67344465,0.00019178,2]
[347465674,1735840233266,-500.0,0.00019178,2]
[347465675,1735840233275,-477.32618357,0.00019178,2]
[347465676,1735840233286,-500.0,0.00019178,2]
[347465677,1735840233296,-500.0,0.00019178,2]
[347465678,1735840233309,-500.0,0.00019178,2]
[347465679,1735840233318,-502.28575414,0.00019178,2]
[347465680,1735840233328,-501.45954815,0.00019178,2]
[347465681,1735840233337,-501.43851034,0.00019178,2]
[347465682,1735840233347,-500.0,0.00019178,2]
[347465683,1735840233357,-500.0,0.00019178,2]
[347465684,1735840233366,-500.49862638,0.00019178,2]
[347465685,1735840233375,-500.0,0.00019178,2]
[347465686,1735840233385,-500.0,0.00019178,2]
[347465687,1735840233394,-500.0,0.00019178,2]
[347465688,1735840233403,-502.56048489,0.00019178,2]
[347465689,1735840233413,-500.0,0.00019178,2]
[347465690,1735840233422,-502.04106863,0.00019178,2]
[347465691,1735840233432,-500.0,0.00019178,2]
[347465692,1735840233445,-500.0,0.00019178,2]
[347465693,1735840233454,-250.75925348,0.00019178,2]
[347465694,1735840233464,-500.0,0.00019178,2]
[347465695,1735840233473,-500.0,0.00019178,2]
[347465696,1735840233485,-500.0,0.00019178,2]
[347465697,1735840233494,-326.29993569,0.00019178,2]
[347465698,1735840233503,-500.0,0.00019178,2]
[347465699,1735840233514,-500.0,0.00019178,2]
[347465700,1735840233523,-501.36039727,0.00019178,2]
[347465701,1735840233533,-502.97333494,0.00019178,2]
[347465702,1735840233543,-501.42521116,0.00019178,2]
[347465703,1735840233555,-500.0,0.00019178,2]
[347465704,1735840233564,-500.0,0.00019178,2]
[347465705,1735840233573,-511.77501265,0.00019178,2]
[347465706,1735840233582,-274.86546911,0.00019178,2]
[347465707,1735840233591,-500.0,0.00019178,2]
[347465708,1735840233601,-506.05334027,0.00019178,2]
[347465709,1735840233611,-503.0140394,0.00019178,2]
[347465710,1735840233621,-500.0,0.00019178,2]
[347465711,1735840233630,-500.0,0.00019178,2]
[347465712,1735840233639,-500.0,0.00019178,2]
[347465713,1735840233649,-500.0,0.00019178,2]
[347465714,1735840233658,-500.0,0.00019178,2]
[347465715,1735840233668,-500.0,0.00019178,2]
[347465716,1735840233678,-201.58918848,0.00019178,2]
[347465717,1735840233688,-501.49554286,0.00019178,2]
[347465718,1735840233698,-500.0,0.00019178,2]
[347465719,1735840233707,-500.0,0.00019178,2]
[347465720,1735840233716,-500.0,0.00019178,2]
[347465721,1735840233726,-500.0,0.00019178,2]
[347465722,1735840233734,-500.0,0.00019178,2]
[347465723,1735840233744,-500.0,0.00019178,2]
[347465724,1735840233753,-500.0,0.00019178,2]
[347465725,1735840233763,-633.81800468,0.00019178,2]
[347465726,1735840233772,-500.0,0.00019178,2]
[347465727,1735840233781,-500.0,0.00019178,2]
[347465728,1735840233790,-500.0,0.00019178,2]
[347465729,1735840233802,-500.0,0.00019178,2]
[347465730,1735840233811,-500.0,0.00019178,2]
[347465731,1735840233820,-500.0,0.00019178,2]
[347465732,1735840233829,-500.0,0.00019178,2]
[347465733,1735840233839,-500.0,0.00019178,2]
[347465734,1735840233849,-500.0,0.00019178,2]
[347465735,1735840233859,-500.0,0.00019178,2]
[347465736,1735840233868,-500.0,0.00019178,2]
[347465737,1735840233878,-500.0,0.00019178,2]
[347465738,1735840233887,-500.0,0.00019178,2]
[347465739,1735840233896,-500.0,0.00019178,2]
[347465740,1735840233905,-500.0,0.00019178,2]
[347465741,1735840233914,-507.96063659,0.00019178,2]
[347465742,1735840233924,-500.0,0.00019178,2]
[347465743,1735840233933,-500.0,0.00019178,2]
[347465744,1735840233943,-500.0,0.00019178,2]
[347465745,1735840233952,-500.0,0.00019178,2]
[347465746,1735840233961,-500.0,0.00019178,2]
[347465747,1735840233970,-500.99082041,0.00019178,2]
[347465748,1735840233979,-500.0,0.00019178,2]
[347465749,1735840233989,-500.0,0.00019178,2]
[347465750,1735840234000,-505.51315457,0.00019178,2]
[347465751,1735840234010,-500.0,0.00019178,2]
[347465752,1735840234020,-500.0,0.00019178,2]
[347465753,1735840234031,-505.09789181,0.00019178,2]
[347465754,1735840234042,-500.0,0.00019178,2]
[347465755,1735840234056,-503.63099656,0.00019178,2]
[347465756,1735840234066,-501.90888916,0.00019178,2]
[347465757,1735840234077,-501.32514093,0.00019178,2]
[347465758,1735840234087,-502.13060033,0.00019178,2]
[347465759,1735840234098,-392.92556305,0.00019178,2]
[347465760,1735840234108,-500.0,0.00019178,2]
[347465761,1735840234119,-501.75883278,0.00019178,2]
[347465762,1735840234131,-500.0,0.00019178,2]
[347465763,1735840234141,-500.0,0.00019178,2]
[347465764,1735840234151,-502.83657487,0.00019178,2]
[347465765,1735840234162,-500.0,0.00019178,2]
[347465766,1735840234173,-500.0,0.00019178,2]
[347465767,1735840234182,-500.0,0.00019178,2]
[347465768,1735840234193,-501.77291779,0.00019178,2]
[347465769,1735840234205,-500.0,0.00019178,2]
[347465770,1735840234215,-500.0,0.00019178,2]
[347465771,1735840234225,-500.0,0.00019178,2]
[347465772,1735840234235,-549.1128626,0.00019178,2]
[347465773,1735840234246,-503.03938597,0.00019178,2]
[347465774,1735840234256,-500.0,0.00019178,2]
[347465775,1735840234266,-501.7072964,0.00019178,2]
[347465776,1735840234276,-505.96019027,0.00019178,2]
[347465777,1735840234286,-500.0,0.00019178,2]
[347465778,1735840234296,-500.0,0.00019178,2]
[347465779,1735840234313,-504.03461667,0.00019178,2]
[347465780,1735840234322,-501.31805084,0.00019178,2]
[347465781,1735840234332,-501.02733389,0.00019178,2]
[347465782,1735840234342,-500.0,0.00019178,2]
[347465783,1735840234351,-489.25,0.00019178,2]
[347465784,1735840234362,-511.90448728,0.00019178,2]
[347465785,1735840234372,-431.82655196,0.00019178,2]
[347465786,1735840234382,-501.05717913,0.00019178,2]
[347465787,1735840234392,-501.28282781,0.00019178,2]
[347465788,1735840234402,-500.0,0.00019178,2]
[347465789,1735840234411,-501.97896498,0.00019178,2]
[347465790,1735840234421,-500.0,0.00019178,2]
[347465791,1735840234431,-500.0,0.00019178,2]
[347465792,1735840234445,-500.0,0.00019178,2]
[347465793,1735840234455,-500.0,0.00019178,2]
[347465794,1735840234465,-500.0,0.00019178,2]
[347465795,1735840234474,-500.0,0.00019178,2]
[347465796,1735840234484,-505.18450953,0.00019178,2]
[347465797,1735840234494,-500.50462421,0.00019178,2]
[347465798,1735840234504,-502.8000514,0.00019178,2]
[347465799,1735840234513,-500.0,0.00019178,2]
[347465800,1735840234522,-500.0,0.00019178,2]
[347465801,1735840234532,-500.0,0.00019178,2]
[347465802,1735840234541,-500.0,0.00019178,2]
[347465803,1735840234552,-503.10747652,0.00019178,2]
[347465804,1735840234562,-500.0,0.00019178,2]
[347465805,1735840234571,-500.0,0.00019178,2]
[347465806,1735840234580,-500.0,0.00019178,2]
[347465807,1735840234590,-500.0,0.00019178,2]
[347465808,1735840234600,-500.0,0.00019178,2]
[347465809,1735840234610,-500.0,0.00019178,2]
[347465810,1735840234619,-500.0,0.00019178,2]
[347465811,1735840234629,-500.0,0.00019178,2]
[347465812,1735840234638,-503.77516713,0.00019178,2]
[347465813,1735840234647,-500.0,0.00019178,2]
[347465814,1735840234657,-500.0,0.00019178,2]
[347465815,1735840234763,-500.0,0.00019178,2]
[347465816,1735840234773,-500.0,0.00019178,2]
[347465817,1735840234783,-503.10872205,0.00019178,2]
[347465818,1735840234793,-517.25,0.00019178,2]
[347465819,1735840234803,-500.0,0.00019178,2]
[347465820,1735840234813,-502.31796934,0.00019178,2]
[347465821,1735840234822,-504.01615632,0.00019178,2]
[347465822,1735840234831,-500.0,0.00019178,2]
[347465823,1735840234840,-502.3819141,0.00019178,2]
[347465824,1735840234849,-500.0,0.00019178,2]
[347465825,1735840234859,-500.0,0.00019178,2]
[347465826,1735840234868,-501.62880177,0.00019178,2]
[347465827,1735840234878,-500.0,0.00019178,2]
[347465828,1735840234887,-500.0,0.00019178,2]
[347465829,1735840234895,-500.0,0.00019178,2]
[347465830,1735840234904,-503.66708583,0.00019178,2]
[347465831,1735840234913,-500.0,0.00019178,2]
[347465832,1735840234922,-500.0,0.00019178,2]
[347465833,1735840234931,-500.0,0.00019178,2]
[347465834,1735840234940,-500.0,0.00019178,2]
[347465835,1735840234950,-500.0,0.00019178,2]
[347465836,1735840234959,-500.0,0.00019178,2]
[347465837,1735840234968,-500.0,0.00019178,2]
[347465838,1735840234978,-500.0,0.00019178,2]
[347465839,1735840234987,-500.0,0.00019178,2]
[347465840,1735840234996,-500.0,0.00019178,2]
[347465841,1735840235006,-502.97863354,0.00019178,2]
[347465842,1735840235015,-506.52050664,0.00019178,2]
[347465843,1735840235024,-436.19789232,0.00019178,2]
[347465844,1735840235034,-500.0,0.00019178,2]
[347465845,1735840235043,-500.0,0.00019178,2]
[347465846,1735840235054,-500.0,0.00019178,2]
[347465847,1735840235063,-500.0,0.00019178,2]
[347465848,1735840235071,-501.39054236,0.00019178,2]
[347465849,1735840235080,-500.0,0.00019178,2]
[347465850,1735840235089,-500.0,0.00019178,2]
[347465851,1735840235098,-504.86586019,0.00019178,2]
[347465852,1735840235108,-500.0,0.00019178,2]
[347465853,1735840235118,-500.0,0.00019178,2]
[347465854,1735840235127,-500.0,0.00019178,2]
[347465855,1735840235137,-500.0,0.00019178,2]
[347465856,1735840235146,-500.0,0.00019178,2]